bitfinex-derivatives/quotes_ETHF0:USTF0_20250627
["timestamp","ask_amount","ask_price","bid_price","bid_amount"]
[1751014457998,0.40742,2453.6,2453.5,1.3733]
[1751014458906,0.40742,2453.6,2453.5,0.6862]
[1751014459204,1.78782,2453.6,2453.5,0.6862]
[1751014459501,0.40742,2453.6,2453.5,0.6862]
[1751014460509,0.40741,2453.7,2453.5,0.6862]
[1751014460808,8.2934,2454.1,2453.5,0.6862]
[1751014461305,0.40739,2453.8,2453.5,2.1292]
[1751014462502,8.2934,2454.1,2453.5,2.1292]
[1751014462709,0.40737,2453.9,2453.5,2.53663]
[1751014463504,0.40739,2453.8,2453.5,2.53663]
[1751014463713,0.4074,2453.7,2453.5,2.1292]
[1751014464210,0.40742,2453.6,2453.5,0.6862]
[1751014465712,0.40741,2453.7,2453.5,0.6862]
[1751014465911,0.40739,2453.8,2453.5,0.6862]
[1751014466217,0.4074,2453.7,2453.5,0.6862]
[1751014466615,0.40742,2453.6,2453.5,0.6862]
[1751014467714,0.40743,2453.5,2453.4,3.2078]
[1751014467906,1.79623,2453.5,2453.4,3.2078]
[1751014468106,0.40745,2453.4,2453.3,3.83]
[1751014468406,1.79625,2453.4,2453.3,3.83]
[1751014469313,0.40747,2453.3,2453.2,0.6871]
[1751014471607,0.40748,2453.2,2453.1,2.28115516]
[1751014472525,0.40748,2453.2,2453.1,0.6895]
[1751014473422,0.40752,2453.0,2452.9,2.27605516]
[1751014474013,0.40751,2453.1,2452.9,2.27605516]
[1751014475024,6.887,2453.4,2452.9,2.27605516]
[1751014475025,0.40752,2453.0,2452.9,2.27605516]
[1751014475915,0.40752,2453.0,2452.9,0.6844]
[1751014476625,0.40753,2452.9,2452.8,4.79945516]
[1751014477719,0.40753,2452.9,2452.8,3.2078]
[1751014478225,0.40753,2452.9,2452.8,4.79945516]
[1751014478426,0.40753,2452.9,2452.6,2.39534294]
[1751014478427,0.40755,2452.8,2452.7,1.59165516]
[1751014478628,0.40755,2452.8,2452.7,1.20944701]
[1751014479218,0.40757,2452.7,2452.6,1.20944701]
[1751014479914,1.85577,2452.7,2452.6,1.20944701]
[1751014480828,0.40758,2452.6,2452.5,1.20944701]
[1751014481330,7.29558,2452.6,2452.5,1.20944701]
[1751014481821,0.4076,2452.5,2452.4,1.20944701]
[1751014482217,1.8558,2452.5,2452.4,1.20944701]
[1751014482613,0.40762,2452.4,2452.3,1.20944701]
[1751014482828,5.06632,2452.4,2452.3,1.20944701]
[1751014483528,5.06632,2452.4,2452.1,1.59165516]
[1751014483529,0.40763,2452.3,2452.2,1.20944701]
[1751014483728,1.85853,2452.3,2452.2,1.20944701]
[1751014484127,1.85853,2452.3,2452.1,7.01e-06]
[1751014484128,0.40765,2452.2,2452.1,7.01e-06]
[1751014484324,0.4077,2451.9,2451.8,1.59165516]
[1751014484737,0.40772,2451.8,2451.7,2.39534294]
[1751014484924,6.889,2451.8,2451.3,1.61116538]
[1751014485230,1.4509,2451.7,2451.2,4.5702]
[1751014485436,0.40776,2451.6,2451.2,4.5702]
[1751014485724,0.40774,2451.7,2451.2,4.5702]
[1751014485918,7.29774,2451.7,2451.3,1.4274]
[1751014486123,0.40774,2451.7,2451.3,1.4274]
[1751014486337,6.89,2451.8,2451.3,1.4274]
[1751014486338,0.40775,2451.6,2451.3,1.4274]
[1751014486623,0.40774,2451.7,2451.3,1.4274]
[1751014487024,6.89,2451.8,2451.3,1.4274]
[1751014487228,6.89,2451.8,2451.2,4.5702]
[1751014487229,0.40777,2451.6,2451.2,4.5702]
[1751014487420,0.40779,2451.4,2451.2,4.5702]
[1751014487625,1.4019,2451.7,2451.2,4.5702]
[1751014488031,0.40777,2451.5,2451.2,4.5702]
[1751014488333,0.40778,2451.4,2451.2,4.5702]
[1751014488830,0.4078,2451.3,2451.2,4.5702]
[1751014489026,11.4997,2451.7,2451.2,4.5702]
[1751014489027,0.40779,2451.4,2451.2,4.5702]
[1751014489234,11.4997,2451.7,2451.2,4.5702]
[1751014489436,0.40779,2451.4,2451.2,4.5702]
[1751014490240,11.4997,2451.7,2451.2,4.5702]
[1751014490432,0.40779,2451.4,2451.2,4.5702]
[1751014490628,0.40777,2451.5,2451.2,4.5702]
[1751014491139,0.40778,2451.4,2451.2,4.5702]
[1751014491334,0.4078,2451.3,2451.2,4.5702]
[1751014493730,0.40785,2451.0,2450.9,3.9032]
[1751014493929,1.01949,2451.4,2450.6,3.2078]
[1751014493930,0.40787,2450.9,2450.6,3.2078]
[1751014494236,0.40788,2450.8,2450.7,1.3478]
[1751014494438,0.40787,2450.9,2450.7,1.3478]
[1751014494828,1.403,2451.0,2450.7,1.3478]
[1751014494829,1.81085,2451.0,2450.7,1.3478]
[1751014495034,6.892,2451.2,2450.9,3.61566]
[1751014495342,0.40783,2451.2,2450.9,3.2078]
[1751014495544,7.29981,2451.3,2450.9,3.61567]
[1751014495741,7.29981,2451.3,2450.9,5.00457]
[1751014496139,6.892,2451.3,2450.9,4.5967]
[1751014496539,0.40782,2451.2,2450.9,4.5967]
[1751014497144,0.40782,2451.2,2450.9,5.00456]
[1751014497349,0.40782,2451.2,2450.9,4.5967]
[1751014497540,0.40784,2451.1,2450.9,4.5967]
[1751014498741,0.40782,2451.2,2450.9,5.00456]
[1751014499649,0.40782,2451.2,2450.9,4.5967]
[1751014499845,0.40782,2451.2,2450.9,5.00456]
[1751014500244,1.403,2451.5,2450.9,4.5967]
[1751014500540,6.893,2451.4,2450.9,4.5967]
[1751014500748,0.40785,2451.0,2450.9,3.2078]
[1751014500947,6.893,2451.4,2450.9,3.2078]
[1751014501147,0.40784,2451.1,2450.9,3.2078]
[1751014501447,0.40783,2451.1,2450.9,3.2078]
[1751014501647,0.40785,2451.0,2450.9,3.2078]
[1751014501850,0.40784,2451.1,2450.9,3.2078]
[1751014502142,4.532,2451.3,2450.7,1.3478]
[1751014502341,0.40788,2450.8,2450.7,1.3478]
[1751014503144,0.40788,2450.9,2450.7,1.3478]
[1751014503345,0.40788,2450.8,2450.7,1.3478]
[1751014504246,6.87,2451.0,2450.7,1.3478]
[1751014504545,0.40788,2450.8,2450.7,1.3478]
[1751014504953,0.40795,2450.4,2450.3,3.2078]
[1751014505152,10.0778,2450.6,2450.0,3.2078]
[1751014505338,1.3744,2450.3,2450.0,3.2078]
[1751014505648,3.2078,2450.6,2450.0,3.2078]
[1751014505866,0.40794,2450.5,2450.1,0.6772]
[1751014506043,7.27795,2450.4,2450.1,0.6772]
[1751014506239,0.40798,2450.2,2450.1,0.6772]
[1751014506445,0.408,2450.1,2450.0,3.2078]
[1751014506848,7.279,2450.1,2450.0,3.2078]
[1751014507249,0.40805,2449.8,2449.7,0.6772]
[1751014507452,3.2078,2450.4,2449.7,0.6772]
[1751014507645,6.871,2450.3,2449.7,0.6772]
[1751014507841,3.2078,2450.1,2449.7,0.6772]
[1751014508047,0.40805,2449.8,2449.7,0.6772]
[1751014508654,9.5785,2449.8,2449.2,3.2078]
[1751014508954,0.40812,2449.4,2449.2,3.2078]
[1751014509156,55.834,2449.3,2448.3,1.61116538]
[1751014509349,3.61606,2448.6,2448.0,2.32996538]
[1751014509544,8.2417,2448.5,2448.0,2.32996538]
[1751014509751,3.2078,2448.6,2448.1,3.2078]
[1751014509946,6.872,2448.5,2448.2,1.3104]
[1751014510152,6.872,2448.5,2448.0,0.7188]
[1751014510153,0.40833,2448.1,2448.0,0.7188]
[1751014510352,6.872,2448.1,2447.8,1.61116538]
[1751014510559,3.2078,2447.9,2447.5,1.61116538]
[1751014510750,1.3228,2447.8,2447.5,1.61116538]
[1751014510950,6.872,2447.7,2447.5,1.61116538]
[1751014511150,3.2078,2447.6,2447.4,1.61116538]
[1751014511347,7.28044,2447.5,2447.2,1.61116538]
[1751014511548,7.28044,2447.5,2446.9,3.2078]
[1751014511745,8.60324,2447.5,2446.9,4.5693]
[1751014511958,3.2078,2447.6,2446.9,4.5693]
[1751014512155,6.872,2447.9,2447.3,3.2078]
[1751014512346,6.872,2448.3,2447.6,3.2078]
[1751014512658,6.872,2448.3,2447.9,0.40836]
[1751014512850,6.872,2448.3,2447.8,0.40838]
[1751014513152,6.872,2448.3,2447.9,1.3615]
[1751014513363,6.872,2448.3,2447.7,0.7266]
[1751014513364,3.2078,2448.1,2447.7,0.7266]
[1751014513561,3.2078,2448.1,2447.4,0.7092]
[1751014513856,0.40841,2447.7,2447.4,0.7092]
[1751014514257,0.40842,2447.6,2447.4,0.7092]
[1751014514756,3.2078,2447.8,2447.0,3.2078]
[1751014514959,3.2078,2447.8,2447.3,3.2078]
[1751014515152,0.40842,2447.6,2447.3,3.2078]
[1751014515352,0.40841,2447.7,2447.3,3.2078]
[1751014515558,3.2078,2447.8,2447.3,3.2078]
[1751014515760,3.2078,2448.5,2447.6,3.2078]
[1751014515952,0.40833,2448.2,2447.7,0.4084]
[1751014516151,0.40835,2448.0,2447.6,3.2078]
[1751014516357,0.40834,2448.1,2447.6,3.2078]
[1751014516658,3.2078,2448.2,2447.6,3.2078]
[1751014516959,0.40839,2447.8,2447.6,3.2078]
[1751014517152,3.2078,2448.2,2447.6,3.2078]
[1751014517153,0.40836,2448.0,2447.6,3.2078]
[1751014517353,6.876,2448.1,2447.6,3.2078]
[1751014517657,1.3103,2448.0,2447.6,3.2078]
[1751014518052,0.40839,2447.8,2447.6,3.2078]
[1751014518252,1.71866,2448.0,2447.6,3.61622]
[1751014518454,1.3103,2448.0,2447.6,3.61622]
[1751014518760,1.3103,2448.0,2447.6,3.2078]
[1751014518956,8.59566,2448.0,2447.6,3.2078]
[1751014519158,1.3103,2448.0,2447.6,3.2078]
[1751014519459,6.877,2448.0,2447.8,0.40838]
[1751014519660,6.877,2448.0,2447.8,0.40837]
[1751014519861,6.877,2448.0,2447.7,1.10029]
[1751014520261,7.28536,2448.0,2447.7,0.6919]
[1751014520461,6.877,2448.0,2447.7,0.6919]
[1751014520665,6.877,2448.0,2447.8,1.12438]
[1751014521052,6.877,2448.3,2447.9,3.2078]
[1751014521266,0.40837,2447.9,2447.8,0.716]
[1751014521855,0.40837,2447.9,2447.7,0.6919]
[1751014522256,0.40839,2447.8,2447.6,3.2078]
[1751014522459,4.645,2448.2,2447.6,3.2078]
[1751014522857,0.40837,2447.9,2447.6,3.2078]
[1751014523164,0.40836,2448.0,2447.6,3.2078]
[1751014523365,1.4476,2447.9,2447.7,0.4084]
[1751014523559,1.4476,2447.9,2447.6,3.2078]
[1751014523761,0.40834,2448.1,2447.6,3.2078]
[1751014524064,6.878,2448.4,2448.0,0.40834]
[1751014524257,6.878,2448.4,2448.0,1.06354]
[1751014524457,0.4083,2448.3,2448.0,0.6552]
[1751014524656,7.28629,2448.4,2448.0,1.06354]
[1751014525063,10.0868,2448.3,2447.4,3.2078]
[1751014525264,0.40839,2447.8,2447.5,0.6681]
[1751014525464,6.879,2447.9,2447.5,0.6681]
[1751014525664,1.3437,2447.8,2447.5,0.6681]
[1751014525868,0.4084,2447.7,2447.4,3.2078]
[1751014526052,1.3437,2447.8,2447.4,3.2078]
[1751014526363,1.3437,2447.6,2447.4,3.2078]
[1751014526562,0.40843,2447.5,2447.4,3.2078]
[1751014527461,1.3437,2447.6,2447.4,3.2078]
[1751014527669,0.40842,2447.6,2447.4,3.2078]
[1751014527965,0.40843,2447.6,2447.4,3.2078]
[1751014528372,6.879,2447.7,2447.4,3.2078]
[1751014528558,3.2078,2448.0,2447.4,3.2078]
[1751014528764,7.28737,2447.9,2447.5,0.40843]
[1751014528966,8.32,2447.9,2447.4,3.2078]
[1751014529165,0.40842,2447.6,2447.4,3.2078]
[1751014529962,0.40843,2447.5,2447.4,3.2078]
[1751014530167,0.40846,2447.4,2447.1,3.2078]
[1751014530365,0.40844,2447.5,2447.2,0.6662]
[1751014530671,0.40845,2447.4,2447.2,2.7733]
[1751014531269,0.40847,2447.3,2447.2,1.3494]
[1751014531865,1.441,2447.6,2447.2,1.3494]
[1751014531866,0.40845,2447.4,2447.2,1.3494]
[1751014532864,0.40847,2447.3,2447.2,1.3494]
[1751014533473,1.441,2447.6,2446.8,3.2078]
[1751014533474,3.2078,2447.4,2446.8,3.2078]
[1751014533774,0.40851,2447.1,2446.9,0.681]
[1751014534173,0.40851,2447.1,2446.9,2.0504]
[1751014534564,11.5765,2447.4,2446.9,2.0504]
[1751014534769,0.40848,2447.3,2447.0,0.40851]
[1751014535064,3.2078,2447.8,2447.1,5.2389]
[1751014535267,6.918,2447.7,2447.1,0.6581]
[1751014535570,6.918,2447.7,2447.2,1.373]
[1751014535765,6.918,2447.7,2447.1,0.6581]
[1751014535766,0.40848,2447.2,2447.1,0.6581]
[1751014536773,0.40852,2447.0,2446.9,0.681]
[1751014537477,0.40853,2446.9,2446.8,3.2078]
[1751014537670,0.40853,2446.9,2446.4,1.61116538]
[1751014537671,0.4086,2446.5,2446.4,1.3712]
[1751014538173,0.40863,2446.3,2446.2,1.61116538]
[1751014538378,6.918,2446.5,2446.1,3.77154294]
[1751014538674,0.40859,2446.6,2446.3,1.61450496]
[1751014538872,3.2078,2446.7,2446.2,3.2078]
[1751014539272,4.5723,2446.7,2446.2,3.2078]
[1751014539479,0.40863,2446.3,2446.2,3.2078]
[1751014539771,3.2078,2446.3,2445.8,1.61450496]
[1751014539979,3.2078,2446.3,2445.6,5.60314294]
[1751014539980,0.4087,2445.9,2445.6,4.82230496]
[1751014540169,0.4087,2446.0,2445.6,5.23105496]
[1751014540375,7.32768,2446.1,2445.7,0.40873]
[1751014540578,7.32768,2446.1,2445.6,4.6255]
[1751014540777,7.32768,2446.1,2445.6,5.03423]
[1751014541080,3.8951,2446.6,2445.9,3.2078]
[1751014541284,10.1268,2446.6,2446.0,2.1569]
[1751014541586,0.40861,2446.5,2446.1,1.06526]
[1751014541776,3.2078,2446.6,2446.1,2.49486]
[1751014541973,10.1268,2446.6,2446.1,2.49486]
[1751014542167,0.40861,2446.5,2446.2,0.40865]
[1751014542375,0.40861,2446.5,2446.1,2.0862]
[1751014542376,10.53538,2446.6,2446.3,0.40862]
[1751014542678,7.32857,2446.7,2446.3,0.40862]
[1751014542877,0.40857,2446.7,2446.3,0.40862]
[1751014543084,3.2078,2446.9,2446.6,0.40857]
[1751014543284,3.2078,2446.9,2446.2,3.2078]
[1751014543285,3.61633,2446.9,2446.3,1.4296]
[1751014543477,3.61633,2446.9,2446.6,0.40858]
[1751014543672,3.2078,2446.9,2446.7,0.40856]
[1751014543985,52.2358,2447.2,2446.5,3.2078]
[1751014544185,0.40852,2447.0,2446.7,0.40856]
[1751014544374,0.40851,2447.1,2446.6,2.0371]
[1751014544574,0.40852,2447.0,2446.6,2.44567]
[1751014544788,10.1278,2447.2,2446.8,3.2078]
[1751014545081,0.40853,2446.9,2446.8,3.2078]
[1751014545476,0.40852,2447.0,2446.8,3.2078]
[1751014545876,8.3024,2447.1,2446.8,3.2078]
[1751014545877,8.71091,2447.1,2446.8,3.2078]
[1751014546077,0.40852,2447.0,2446.8,3.2078]
[1751014546283,7.32851,2447.1,2446.8,3.2078]
[1751014546681,6.92,2447.1,2446.9,0.689]
[1751014546876,0.40851,2447.1,2446.9,0.689]
[1751014547476,3.61629,2447.2,2446.9,0.689]
[1751014547673,3.61629,2447.2,2446.9,1.09753]
[1751014547874,3.2078,2447.2,2447.0,0.40851]
[1751014548085,3.61629,2447.2,2446.9,2.46622]
[1751014548480,3.2078,2447.2,2447.1,0.4085]
[1751014548985,0.40844,2447.5,2446.9,2.0577]
[1751014549181,0.40845,2447.4,2447.2,0.40848]
[1751014549380,0.40844,2447.5,2447.2,0.40848]
[1751014549683,0.40844,2447.5,2447.3,0.40846]
[1751014549987,0.40845,2447.4,2447.2,0.40848]
[1751014550483,6.92,2447.6,2447.1,3.2078]
[1751014550684,6.92,2447.6,2447.4,0.40844]
[1751014550887,6.92,2447.6,2447.2,2.1395]
[1751014550888,6.92,2447.6,2447.5,0.40843]
[1751014551085,6.92,2448.2,2447.5,3.2078]
[1751014551386,0.40836,2448.0,2447.6,2.1445]
[1751014551587,8.3102,2448.2,2447.6,2.1445]
[1751014551779,0.40838,2447.9,2447.6,1.10281]
[1751014551982,0.4084,2447.7,2447.6,0.6944]
[1751014552586,0.40839,2447.8,2447.6,0.6944]
[1751014552780,0.40838,2447.9,2447.6,0.6944]
[1751014552983,1.79856,2448.0,2447.6,1.10281]
[1751014553287,6.92,2448.2,2447.6,1.10281]
[1751014553492,0.40837,2447.9,2447.6,0.6944]
[1751014553791,0.40836,2448.0,2447.6,1.10281]
[1751014554679,0.40837,2447.9,2447.6,1.10281]
[1751014555089,0.40836,2448.0,2447.6,1.10281]
[1751014555592,0.40836,2448.0,2447.6,0.6944]
[1751014555892,0.40836,2448.0,2447.7,0.4084]
[1751014556096,0.40834,2448.1,2447.7,0.4084]
[1751014556286,0.40835,2448.0,2447.8,3.9104]
[1751014558489,6.92,2448.2,2447.8,3.9104]
[1751014558693,0.40836,2448.0,2447.8,3.9104]
[1751014559288,0.40834,2448.1,2447.8,3.9104]
[1751014559484,3.2078,2448.3,2447.8,3.9104]
[1751014559788,3.2078,2448.3,2447.9,0.40836]
[1751014559987,3.2078,2448.3,2448.0,0.40835]
[1751014560287,0.40834,2448.1,2447.9,1.4465]
[1751014560490,0.40835,2448.0,2447.9,1.4465]
[1751014560689,3.2078,2448.3,2447.9,1.4465]
[1751014560895,3.61611,2448.3,2448.0,0.40835]
[1751014561194,0.40833,2448.1,2447.9,1.4465]
[1751014561495,6.919,2448.4,2447.9,1.4465]
[1751014561691,0.40835,2448.0,2447.9,1.4465]
[1751014562088,0.40835,2448.0,2447.8,3.9104]
[1751014562290,0.40835,2448.0,2447.8,4.31878]
[1751014562491,0.40835,2448.0,2447.8,3.9104]
[1751014562693,0.40835,2448.0,2447.8,4.31878]
[1751014562994,0.40834,2448.1,2447.8,4.31878]
[1751014563196,0.40834,2448.1,2447.9,0.40836]
[1751014563392,0.40834,2448.1,2447.9,1.82596]
[1751014563607,0.40831,2448.3,2448.0,0.40834]
[1751014563789,0.40829,2448.4,2448.2,3.2078]
[1751014563990,0.40828,2448.5,2448.3,0.7218]
[1751014564299,0.40827,2448.5,2448.3,1.84879]
[1751014564486,3.2078,2449.0,2448.3,2.8581]
[1751014564690,0.40825,2448.6,2448.5,3.2078]
[1751014566395,0.40824,2448.7,2448.5,3.2078]
[1751014566595,6.91,2449.3,2448.5,3.2078]
[1751014566797,8.3127,2449.3,2448.5,3.61606]
[1751014567300,0.40822,2448.8,2448.5,3.61606]
[1751014568088,0.40822,2448.8,2448.5,3.2078]
[1751014568403,0.40821,2448.9,2448.6,0.40825]
[1751014568700,0.40819,2449.0,2448.6,0.40825]
[1751014568901,0.4082,2448.9,2448.6,0.40825]
[1751014569288,8.3127,2449.3,2448.6,0.40824]
[1751014569494,0.40821,2448.9,2448.5,3.2078]
[1751014569700,0.40821,2448.9,2448.6,0.40824]
[1751014570198,0.40821,2448.9,2448.7,0.40823]
[1751014570399,8.3127,2449.3,2448.6,0.40824]
[1751014570603,1.4027,2449.3,2448.8,0.40821]
[1751014570804,0.40817,2449.1,2448.8,0.40821]
[1751014570990,0.40818,2449.0,2448.9,0.6734]
[1751014571194,0.40821,2448.9,2448.6,0.40825]
[1751014571399,0.40821,2448.9,2448.6,1.08695]
[1751014571896,0.40821,2448.9,2448.6,0.6787]
[1751014572091,1.4027,2449.3,2448.6,0.6787]
[1751014572092,0.40816,2449.2,2448.9,0.40819]
[1751014572298,0.40817,2449.1,2448.6,0.6787]
[1751014572498,0.40817,2449.1,2448.8,0.40822]
[1751014572804,0.40817,2449.1,2448.9,1.0962]
[1751014573001,1.4027,2449.3,2449.1,0.40816]
[1751014573301,3.2078,2449.7,2449.1,3.2078]
[1751014573302,10.1158,2449.7,2449.1,3.2078]
[1751014573503,0.40813,2449.4,2449.2,0.6787]
[1751014573698,0.40813,2449.4,2449.2,1.08685]
[1751014574201,0.40813,2449.3,2449.2,0.6787]
[1751014575805,1.4118,2449.6,2449.2,0.6787]
[1751014576008,0.40812,2449.4,2449.2,1.08685]
[1751014576207,0.40812,2449.4,2449.2,0.6787]
[1751014576408,1.4118,2449.6,2449.1,3.2078]
[1751014576905,0.40812,2449.4,2449.1,3.61596]
[1751014577207,0.40811,2449.5,2449.1,3.61596]
[1751014577504,0.40812,2449.4,2449.1,3.61596]
[1751014577706,0.40812,2449.4,2449.1,3.2078]
[1751014577899,0.40812,2449.4,2449.1,3.61596]
[1751014578105,0.40811,2449.5,2449.1,3.61596]
[1751014578297,0.40812,2449.4,2449.1,3.2078]
[1751014579506,0.40813,2449.4,2449.1,3.2078]
[1751014580205,3.2078,2449.7,2449.1,3.2078]
[1751014580403,0.11653,2449.8,2449.1,4.5979]
[1751014580608,0.40809,2449.6,2449.2,0.40815]
[1751014580808,1.74757,2449.7,2449.3,0.40812]
[1751014581102,1.3395,2449.7,2449.4,3.8932]
[1751014581306,0.11653,2449.8,2449.4,3.8932]
[1751014581511,0.11653,2449.8,2449.5,0.6834]
[1751014581805,0.40808,2449.6,2449.5,0.6834]
[1751014582904,0.4081,2449.5,2449.4,0.6854]
[1751014583312,0.40815,2449.2,2449.1,13.9448]
[1751014583511,0.40815,2449.2,2449.1,10.1148]
[1751014584210,1.73932,2449.4,2449.1,10.1148]
[1751014584407,1.73932,2449.4,2449.1,10.52297]
[1751014584610,1.3312,2449.4,2449.1,10.1148]
[1751014584810,0.40814,2449.3,2449.1,10.1148]
[1751014585418,0.40813,2449.3,2449.1,10.52296]
[1751014585712,0.40812,2449.4,2449.1,10.52296]
[1751014586614,4.539,2449.7,2449.1,10.52296]
[1751014587112,0.40814,2449.3,2449.1,10.1148]
[1751014587708,0.40813,2449.4,2449.1,10.52296]
[1751014587912,0.40813,2449.3,2449.1,10.52296]
[1751014588213,0.40815,2449.2,2449.1,10.1138]
[1751014588410,0.40814,2449.3,2449.1,10.1138]
[1751014589014,0.40812,2449.4,2449.1,11.73190912]
[1751014589310,0.40812,2449.4,2449.2,0.40814]
[1751014589502,0.40809,2449.6,2449.3,0.40813]
[1751014589706,0.52459,2449.8,2449.4,3.2078]
[1751014590012,0.52458,2449.8,2449.5,0.40809]
[1751014590211,0.11653,2449.8,2449.7,3.2078]
[1751014591217,0.11653,2449.8,2449.7,3.61587]
[1751014592106,0.11653,2449.8,2449.7,8.61587]
[1751014592812,0.11653,2449.8,2449.7,3.2078]
[1751014593207,0.11653,2449.8,2449.7,3.61587]
[1751014594709,1.82373,2450.6,2450.3,0.40796]
[1751014594916,3.5135,2451.0,2450.5,0.40792]
[1751014595117,11.8213,2451.0,2450.5,0.40792]
[1751014595412,0.40787,2450.9,2450.6,0.4079]
[1751014595610,0.40787,2450.9,2450.5,3.2078]
[1751014595812,11.5156,2451.0,2450.6,1.06651]
[1751014596018,0.40787,2450.9,2450.6,1.06651]
[1751014596215,3.2078,2451.3,2450.8,3.2078]
[1751014596413,0.40785,2451.1,2450.8,3.2078]
[1751014596606,0.40786,2451.0,2450.8,3.2078]
[1751014596911,0.40788,2450.8,2450.6,0.6586]
[1751014597114,1.73797,2450.9,2450.6,0.6586]
[1751014597310,1.3301,2450.9,2450.6,1.06651]
[1751014597512,10.0988,2451.3,2450.6,0.6586]
[1751014597821,0.40785,2451.0,2450.7,0.40789]
[1751014598114,0.40787,2450.9,2450.6,0.6586]
[1751014598419,1.3301,2451.2,2450.6,0.6586]
[1751014598617,1.80959,2450.8,2450.6,0.6586]
[1751014598817,1.4017,2450.8,2450.6,0.6586]
[1751014599413,0.40782,2451.2,2450.8,0.40788]
[1751014599720,0.40784,2451.1,2450.6,0.6586]
[1751014599924,1.4017,2451.0,2450.6,0.6586]
[1751014600220,1.80957,2451.0,2450.6,1.06651]
[1751014600421,0.40787,2450.9,2450.6,0.6586]
[1751014600912,0.4079,2450.7,2450.6,0.6586]
[1751014601116,4.6095,2450.8,2450.3,7.5503]
[1751014601317,1.4017,2450.6,2450.3,7.5503]
[1751014601512,0.40794,2450.5,2450.3,7.5503]
[1751014601719,1.4017,2450.6,2450.3,7.95826]
[1751014602021,0.40794,2450.5,2450.3,7.5503]
[1751014602224,0.40795,2450.4,2450.2,3.2078]
[1751014602425,1.3363,2450.3,2450.2,3.2078]
[1751014604016,1.74427,2450.3,2450.2,3.2078]
[1751014604219,1.3363,2450.3,2449.8,8.09994912]
[1751014604429,0.40803,2449.9,2449.8,6.89]
[1751014604931,0.6712,2450.2,2449.8,6.89]
[1751014605430,0.40801,2450.1,2449.8,6.89]
[1751014605825,0.40802,2450.0,2449.8,6.89]
[1751014606430,0.40803,2449.9,2449.8,6.89]
[1751014606931,0.40803,2450.0,2449.8,6.89]
[1751014607228,0.40803,2449.9,2449.8,10.0978]
[1751014609128,1.4204,2450.2,2449.8,10.50585]
[1751014609430,0.408,2450.1,2449.8,10.50584]
[1751014610133,1.4204,2450.2,2449.8,10.0978]
[1751014610134,0.40803,2449.9,2449.8,10.0978]
[1751014610333,0.40803,2450.0,2449.8,10.0978]
[1751014610726,0.40801,2450.1,2449.8,10.50585]
[1751014611330,0.40803,2449.9,2449.8,10.0978]
[1751014611720,0.40803,2450.0,2449.8,10.0978]
[1751014612432,0.40803,2449.9,2449.8,11.30774912]
[1751014613142,0.40803,2449.9,2449.8,10.0978]
[1751014613633,0.40802,2450.0,2449.8,10.0978]
[1751014613931,0.40803,2449.9,2449.8,10.0978]
[1751014614334,0.40802,2450.0,2449.8,11.30774912]
[1751014614835,0.40803,2449.9,2449.8,11.30774912]
[1751014615041,0.40803,2449.9,2449.8,10.0978]
[1751014615237,0.40802,2450.0,2449.8,10.0978]
[1751014615534,1.4204,2450.2,2449.8,10.0978]
[1751014615535,0.40803,2449.9,2449.8,3.2078]
[1751014615734,0.40803,2449.9,2449.8,4.41774912]
[1751014615924,0.40803,2449.9,2449.8,3.2078]
[1751014616323,0.40803,2449.9,2449.8,4.41774912]
[1751014617024,1.4204,2450.2,2449.8,4.41774912]
[1751014617535,0.40802,2450.0,2449.9,1.20994912]
[1751014620238,0.40802,2450.0,2449.8,4.82230496]
[1751014620440,0.40803,2449.9,2449.8,4.82230496]
[1751014622739,0.40803,2449.9,2449.8,3.2078]
[1751014622936,0.40803,2449.9,2449.8,4.82151397]
[1751014623442,0.40803,2449.9,2449.8,3.2078]
[1751014623843,0.40803,2450.0,2449.8,3.2078]
[1751014624042,0.40802,2450.0,2449.9,1.61421047]
[1751014625539,0.40803,2449.9,2449.8,4.82201047]
[1751014627440,0.40803,2449.9,2449.8,3.2078]
[1751014629240,0.40803,2449.9,2449.8,1.21074788]
[1751014629547,0.40805,2449.8,2449.7,1.21074788]
[1751014629744,0.40805,2449.8,2449.6,1.21074788]
[1751014629745,0.40807,2449.7,2449.6,1.21074788]
[1751014629940,2.0337,2449.8,2449.5,4.82201047]
[1751014629941,0.40808,2449.6,2449.5,4.82201047]
[1751014631448,0.40808,2449.6,2449.5,3.2078]
[1751014633147,0.40808,2449.6,2449.4,1.21126684]
[1751014633844,1.3594,2449.8,2449.4,1.21126684]
[1751014634149,3.5134,2450.1,2449.5,1.21126684]
[1751014634352,0.40806,2449.8,2449.5,2.59286684]
[1751014634551,1.3688,2450.2,2449.6,5.13456684]
[1751014634752,0.40802,2450.0,2449.7,2.49976]
[1751014634945,0.40802,2450.0,2449.7,2.0917]
[1751014635251,1.3688,2450.2,2449.7,2.0917]
[1751014635449,0.40802,2450.0,2449.7,2.49976]
[1751014635748,0.40801,2450.1,2449.8,0.40804]
[1751014635949,0.40799,2450.2,2449.9,0.40803]
[1751014636254,0.40798,2450.3,2449.9,3.2078]
[1751014636445,0.40798,2450.3,2450.0,1.83311]
[1751014636846,6.88,2450.6,2450.1,1.11539]
[1751014637152,0.40795,2450.4,2450.2,1.4251]
[1751014637454,6.88,2450.6,2450.3,0.6656]
[1751014637654,0.40794,2450.5,2450.3,0.6656]